[Event "Late-Titled-Tuesday-Blitz-January-30-2024"]
[Site "Chess.com"]
[Date "2024.01.30"]
[Round "3"]
[White "mightysmasher"]
[Black "Nemsko"]
[Result "0-1"]
[WhiteElo "2558"]
[BlackElo "2372"]
[TimeControl "180+1"]
[EndTime "14:27:29 PST"]
[Termination "Nemsko won by checkmate"]

1. e4 {[%clk 0:03:00.9]} 1... e5 {[%clk 0:02:59.6]} 2. Nf3 {[%clk 0:02:59.3]}
2... Nc6 {[%clk 0:03:00.2]} 3. d4 {[%clk 0:02:59.2]} 3... exd4 {[%clk
0:03:00.4]} 4. Nxd4 {[%clk 0:03:00.1]} 4... Nf6 {[%clk 0:03:00.7]} 5. Nc3 {[%clk
0:02:59.8]} 5... Bb4 {[%clk 0:03:01]} 6. Nxc6 {[%clk 0:02:59.5]} 6... bxc6
{[%clk 0:03:01.9]} 7. Bd3 {[%clk 0:02:57.2]} 7... d5 {[%clk 0:03:01.7]} 8. exd5
{[%clk 0:02:57.4]} 8... cxd5 {[%clk 0:03:02.6]} 9. O-O {[%clk 0:02:57.7]} 9...
O-O {[%clk 0:03:01.8]} 10. Bg5 {[%clk 0:02:57.7]} 10... c6 {[%clk 0:03:01.9]}
11. Qf3 {[%clk 0:02:57.4]} 11... Be7 {[%clk 0:02:58.6]} 12. Rfe1 {[%clk
0:02:56.6]} 12... Be6 {[%clk 0:02:53.2]} 13. Bf5 {[%clk 0:02:55.7]} 13... Qd7
{[%clk 0:02:49.5]} 14. Bxe6 {[%clk 0:02:55.2]} 14... fxe6 {[%clk 0:02:50.4]} 15.
Qh3 {[%clk 0:02:54.1]} 15... Bc5 {[%clk 0:02:38.8]} 16. Qxe6+ {[%clk 0:02:26.2]}
16... Qxe6 {[%clk 0:02:35]} 17. Rxe6 {[%clk 0:02:26.2]} 17... Ng4 {[%clk
0:02:30.1]} 18. Rxc6 {[%clk 0:02:11.8]} 18... Bxf2+ {[%clk 0:02:25.2]} 19. Kh1
{[%clk 0:02:11.1]} 19... Rf5 {[%clk 0:02:19.5]} 20. Bd2 {[%clk 0:01:49.4]} 20...
Raf8 {[%clk 0:01:56.6]} 21. h3 {[%clk 0:01:41.9]} 21... Bg3 {[%clk 0:01:37.5]}
22. Rc8 {[%clk 0:00:16.2]} 22... Nf2+ {[%clk 0:01:32.9]} 23. Kg1 {[%clk
0:00:15.6]} 23... Rxc8 {[%clk 0:01:33.4]} 24. Ne2 {[%clk 0:00:15.1]} 24... Ne4
{[%clk 0:01:31.5]} 25. Nxg3 {[%clk 0:00:14.5]} 25... Nxg3 {[%clk 0:01:32.4]} 26.
c3 {[%clk 0:00:14.6]} 26... Ne4 {[%clk 0:01:30.4]} 27. Be3 {[%clk 0:00:14.3]}
27... a6 {[%clk 0:01:29.5]} 28. Bd4 {[%clk 0:00:14.5]} 28... Rb8 {[%clk
0:01:29.1]} 29. b3 {[%clk 0:00:14.1]} 29... Rbf8 {[%clk 0:01:28.5]} 30. Re1
{[%clk 0:00:13.4]} 30... h5 {[%clk 0:01:25.6]} 31. c4 {[%clk 0:00:13.3]} 31...
Ng3 {[%clk 0:01:24]} 32. Re7 {[%clk 0:00:09]} 32... R8f7 {[%clk 0:01:23.9]} 33.
Re8+ {[%clk 0:00:08.5]} 33... Kh7 {[%clk 0:01:23.7]} 34. c5 {[%clk 0:00:06.9]}
34... h4 {[%clk 0:01:22.1]} 35. Bf2 {[%clk 0:00:01.8]} 35... Rxf2 {[%clk
0:01:20.6]} 36. Re1 {[%clk 0:00:02.7]} 36... Rf1+ {[%clk 0:01:20.5]} 37. Rxf1
{[%clk 0:00:03.6]} 37... Rxf1+ {[%clk 0:01:20.9]} 38. Kh2 {[%clk 0:00:04.3]}
38... Rh1# {[%clk 0:01:21.5]} 0-1

[Event "Late-Titled-Tuesday-Blitz-January-30-2024"]
[Site "Chess.com"]
[Date "2024.01.30"]
[Round "3"]
[White "Bryanl106"]
[Black "PapaieDudu"]
[Result "0-1"]
[WhiteElo "2560"]
[BlackElo "2400"]
[TimeControl "180+1"]
[EndTime "14:27:30 PST"]
[Termination "PapaieDudu won by checkmate"]

1. e4 {[%clk 0:03:00.9]} 1... c5 {[%clk 0:02:58.9]} 2. Nf3 {[%clk 0:02:58.1]}
2... d6 {[%clk 0:02:58.6]} 3. d4 {[%clk 0:02:58.5]} 3... cxd4 {[%clk 0:02:59.5]}
4. Nxd4 {[%clk 0:02:59.4]} 4... Nf6 {[%clk 0:02:57.2]} 5. Nc3 {[%clk 0:02:59.8]}
5... a6 {[%clk 0:02:57.6]} 6. h3 {[%clk 0:02:59.6]} 6... e5 {[%clk 0:02:55.1]}
7. Nde2 {[%clk 0:02:59.6]} 7... b5 {[%clk 0:02:55.8]} 8. g4 {[%clk 0:02:51.5]}
8... Bb7 {[%clk 0:02:55]} 9. Bg2 {[%clk 0:02:48.4]} 9... h6 {[%clk 0:02:49.2]}
10. a3 {[%clk 0:02:45.7]} 10... Be7 {[%clk 0:02:44.5]} 11. O-O {[%clk
0:02:45.4]} 11... O-O {[%clk 0:02:43.8]} 12. Ng3 {[%clk 0:02:45.2]} 12... Re8
{[%clk 0:02:42.8]} 13. Nf5 {[%clk 0:02:45.1]} 13... Bf8 {[%clk 0:02:43.2]} 14.
Be3 {[%clk 0:02:44.7]} 14... Qc7 {[%clk 0:02:40.9]} 15. Qd2 {[%clk 0:02:40.3]}
15... Nbd7 {[%clk 0:02:38.6]} 16. Rad1 {[%clk 0:02:39.4]} 16... Nc5 {[%clk
0:02:19.9]} 17. Nxd6 {[%clk 0:02:37.9]} 17... Red8 {[%clk 0:01:58.5]} 18. Bxc5
{[%clk 0:02:35.7]} 18... Qxc5 {[%clk 0:01:44.2]} 19. Nxb7 {[%clk 0:02:35.8]}
19... Rxd2 {[%clk 0:01:43.1]} 20. Nxc5 {[%clk 0:02:36.2]} 20... Rxd1 {[%clk
0:01:43.8]} 21. Rxd1 {[%clk 0:02:36.7]} 21... Bxc5 {[%clk 0:01:43.4]} 22. Kf1
{[%clk 0:02:33.1]} 22... Rb8 {[%clk 0:01:38.8]} 23. Nd5 {[%clk 0:02:32.4]} 23...
Nh7 {[%clk 0:01:33.6]} 24. b4 {[%clk 0:02:30.6]} 24... Bf8 {[%clk 0:01:20.9]}
25. h4 {[%clk 0:02:30.2]} 25... Rc8 {[%clk 0:01:15.5]} 26. Rd2 {[%clk
0:02:26.9]} 26... a5 {[%clk 0:01:11.2]} 27. Bh3 {[%clk 0:02:26.2]} 27... axb4
{[%clk 0:01:10.3]} 28. axb4 {[%clk 0:02:25.2]} 28... Rc4 {[%clk 0:01:09.9]} 29.
f3 {[%clk 0:02:13.7]} 29... Bxb4 {[%clk 0:01:09.6]} 30. Nxb4 {[%clk 0:02:13.4]}
30... Rxb4 {[%clk 0:01:10.1]} 31. Rd8+ {[%clk 0:02:13.2]} 31... Nf8 {[%clk
0:01:10.6]} 32. g5 {[%clk 0:02:12.1]} 32... hxg5 {[%clk 0:01:07.5]} 33. hxg5
{[%clk 0:02:13]} 33... g6 {[%clk 0:01:04.3]} 34. Ke2 {[%clk 0:02:11.6]} 34...
Kg7 {[%clk 0:01:03.5]} 35. Rc8 {[%clk 0:02:10.3]} 35... Nh7 {[%clk 0:00:57.2]}
36. Bd7 {[%clk 0:02:06.2]} 36... Nxg5 {[%clk 0:00:47.8]} 37. Rc5 {[%clk
0:02:04.6]} 37... Rc4 {[%clk 0:00:28.4]} 38. Rxe5 {[%clk 0:01:54.8]} 38... Rxc2+
{[%clk 0:00:25.2]} 39. Ke3 {[%clk 0:01:51.1]} 39... Rc3+ {[%clk 0:00:23.4]} 40.
Kf4 {[%clk 0:01:50.9]} 40... f6 {[%clk 0:00:23.1]} 41. Rxb5 {[%clk 0:01:45.6]}
41... Rxf3+ {[%clk 0:00:18.6]} 42. Kg4 {[%clk 0:01:45.9]} 42... Re3 {[%clk
0:00:17.8]} 43. Bc6 {[%clk 0:01:37.7]} 43... Kh6 {[%clk 0:00:15.6]} 44. Rb4
{[%clk 0:01:32.5]} 44... Rf3 {[%clk 0:00:15.5]} 45. e5 {[%clk 0:01:27.6]} 45...
f5+ {[%clk 0:00:14.9]} 46. Kh4 {[%clk 0:01:26.1]} 46... Rh3# {[%clk 0:00:15.5]}
0-1

[Event "Late-Titled-Tuesday-Blitz-January-30-2024"]
[Site "Chess.com"]
[Date "2024.01.30"]
[Round "3"]
[White "cthulhuuu"]
[Black "PawnEatingZombie"]
[Result "1-0"]
[WhiteElo "2380"]
[BlackElo "2143"]
[TimeControl "180+1"]
[EndTime "14:27:34 PST"]
[Termination "cthulhuuu won by resignation"]

1. e4 {[%clk 0:03:00.1]} 1... e6 {[%clk 0:02:59.2]} 2. d3 {[%clk 0:03:00.2]}
2... d5 {[%clk 0:02:58.1]} 3. Nd2 {[%clk 0:03:00.8]} 3... Nf6 {[%clk 0:02:56.5]}
4. Ngf3 {[%clk 0:03:01.5]} 4... c5 {[%clk 0:02:55.4]} 5. g3 {[%clk 0:03:02]}
5... Nc6 {[%clk 0:02:55.6]} 6. Bg2 {[%clk 0:03:01.5]} 6... g6 {[%clk 0:02:56.1]}
7. O-O {[%clk 0:03:01.7]} 7... Bg7 {[%clk 0:02:56.4]} 8. Re1 {[%clk 0:03:02.2]}
8... O-O {[%clk 0:02:56.3]} 9. Qe2 {[%clk 0:03:02.7]} 9... b6 {[%clk 0:02:31.2]}
10. h4 {[%clk 0:03:00.3]} 10... Ba6 {[%clk 0:02:26.5]} 11. a3 {[%clk 0:02:02.4]}
11... Qc7 {[%clk 0:02:24.8]} 12. c3 {[%clk 0:01:38.5]} 12... dxe4 {[%clk
0:02:20.8]} 13. Nxe4 {[%clk 0:01:38.2]} 13... Nxe4 {[%clk 0:02:17.4]} 14. Qxe4
{[%clk 0:01:39.1]} 14... Rad8 {[%clk 0:02:00.6]} 15. Bf4 {[%clk 0:01:37.9]}
15... Qc8 {[%clk 0:01:55.4]} 16. Rad1 {[%clk 0:01:36.2]} 16... Na5 {[%clk
0:01:25]} 17. h5 {[%clk 0:01:26.8]} 17... Bb7 {[%clk 0:01:23.8]} 18. Qe3 {[%clk
0:01:26.1]} 18... Qa8 {[%clk 0:01:03.3]} 19. h6 {[%clk 0:01:15.9]} 19... Bh8
{[%clk 0:01:02.3]} 20. Bg5 {[%clk 0:01:03.5]} 20... Rd7 {[%clk 0:00:53.5]} 21.
Ne5 {[%clk 0:00:58.2]} 21... Rc7 {[%clk 0:00:50.3]} 22. Bxb7 {[%clk 0:00:51.9]}
22... Qxb7 {[%clk 0:00:49.4]} 23. Ng4 {[%clk 0:00:52.1]} 23... Nc6 {[%clk
0:00:24.1]} 24. Bf6 {[%clk 0:00:46.6]} 24... Ne7 {[%clk 0:00:18.2]} 25. Bxh8
{[%clk 0:00:41.6]} 25... Kxh8 {[%clk 0:00:18.1]} 26. Qe5+ {[%clk 0:00:41.8]} 1-0

[Event "Late-Titled-Tuesday-Blitz-January-30-2024"]
[Site "Chess.com"]
[Date "2024.01.30"]
[Round "3"]
[White "mishanick"]
[Black "only_strong_moves"]
[Result "1-0"]
[WhiteElo "3128"]
[BlackElo "2541"]
[TimeControl "180+1"]
[EndTime "14:27:37 PST"]
[Termination "mishanick won by resignation"]

1. d4 {[%clk 0:02:55.2]} 1... Nf6 {[%clk 0:03:00.2]} 2. c4 {[%clk 0:02:55.6]}
2... e6 {[%clk 0:03:00.5]} 3. Nc3 {[%clk 0:02:56.3]} 3... d5 {[%clk 0:03:00.9]}
4. Bg5 {[%clk 0:02:55.8]} 4... c6 {[%clk 0:02:58.6]} 5. e3 {[%clk 0:02:54.6]}
5... Be7 {[%clk 0:02:56.9]} 6. Bd3 {[%clk 0:02:54.5]} 6... a5 {[%clk 0:02:54]}
7. Nf3 {[%clk 0:02:50.6]} 7... h6 {[%clk 0:02:54.5]} 8. Bh4 {[%clk 0:02:50]}
8... dxc4 {[%clk 0:02:51.8]} 9. Bxc4 {[%clk 0:02:50.1]} 9... b5 {[%clk
0:02:52.4]} 10. Bd3 {[%clk 0:02:50.6]} 10... b4 {[%clk 0:02:51.9]} 11. Bxf6
{[%clk 0:02:48.3]} 11... Bxf6 {[%clk 0:02:48.9]} 12. Ne4 {[%clk 0:02:48.9]}
12... Be7 {[%clk 0:02:47.8]} 13. Rc1 {[%clk 0:02:49.4]} 13... Qd5 {[%clk
0:02:43.6]} 14. O-O {[%clk 0:02:48]} 14... Ba6 {[%clk 0:02:42.2]} 15. Ne5 {[%clk
0:02:46.1]} 15... O-O {[%clk 0:01:58.8]} 16. b3 {[%clk 0:02:39.9]} 16... Rc8
{[%clk 0:01:54.9]} 17. Re1 {[%clk 0:02:39.5]} 17... Bxd3 {[%clk 0:01:52.8]} 18.
Qxd3 {[%clk 0:02:39.5]} 18... Nd7 {[%clk 0:01:46.6]} 19. Nxd7 {[%clk 0:02:37.4]}
19... Qxd7 {[%clk 0:01:47.5]} 20. Nc5 {[%clk 0:02:37.6]} 20... Qd5 {[%clk
0:01:39.9]} 21. f4 {[%clk 0:02:37]} 21... Rd8 {[%clk 0:01:29.8]} 22. Na4 {[%clk
0:02:23.6]} 22... c5 {[%clk 0:01:20]} 23. Nb6 {[%clk 0:02:22.8]} 23... Qb7
{[%clk 0:01:12.5]} 24. Nxa8 {[%clk 0:02:23.2]} 24... Qxa8 {[%clk 0:01:11.8]} 25.
Rc4 {[%clk 0:02:22.4]} 25... a4 {[%clk 0:01:10.5]} 26. Rd1 {[%clk 0:02:21.2]}
26... axb3 {[%clk 0:00:50.5]} 27. axb3 {[%clk 0:02:22.1]} 27... Qa3 {[%clk
0:00:38.7]} 28. h3 {[%clk 0:02:20.8]} 28... cxd4 {[%clk 0:00:33.8]} 29. Rxd4
{[%clk 0:02:21.7]} 29... Rxd4 {[%clk 0:00:17.1]} 30. exd4 {[%clk 0:02:21.3]}
30... Qb2 {[%clk 0:00:16.4]} 31. g3 {[%clk 0:02:18.5]} 31... g5 {[%clk
0:00:13.3]} 32. Rb1 {[%clk 0:02:05.7]} 32... Qa2 {[%clk 0:00:12.4]} 33. Rf1
{[%clk 0:02:06.4]} 33... Qb2 {[%clk 0:00:08.5]} 34. f5 {[%clk 0:02:04.3]} 34...
Bf6 {[%clk 0:00:07.8]} 35. fxe6 {[%clk 0:02:01.5]} 35... Qxd4+ {[%clk
0:00:07.7]} 36. Qxd4 {[%clk 0:02:01.6]} 36... Bxd4+ {[%clk 0:00:08.6]} 37. Kg2
{[%clk 0:02:02.3]} 37... fxe6 {[%clk 0:00:09.5]} 38. Kf3 {[%clk 0:02:02.4]}
38... Bc3 {[%clk 0:00:08.7]} 39. Ke4 {[%clk 0:01:59.5]} 39... Kg7 {[%clk
0:00:09]} 40. Rd1 {[%clk 0:01:59.4]} 40... Kf6 {[%clk 0:00:08.7]} 41. Rd8 {[%clk
0:01:58.5]} 41... Kg6 {[%clk 0:00:08.1]} 42. Rd6 {[%clk 0:01:55.4]} 42... Kf6
{[%clk 0:00:07.9]} 43. Rc6 {[%clk 0:01:56.1]} 43... h5 {[%clk 0:00:07.1]} 44.
Rc5 {[%clk 0:01:54.5]} 44... Kg6 {[%clk 0:00:06.5]} 45. g4 {[%clk 0:01:51.6]}
45... hxg4 {[%clk 0:00:05.6]} 46. hxg4 {[%clk 0:01:52.5]} 46... Kf6 {[%clk
0:00:06.2]} 47. Kd3 {[%clk 0:01:53.1]} 47... Kg6 {[%clk 0:00:05.7]} 48. Rxc3
{[%clk 0:01:52.5]} 48... bxc3 {[%clk 0:00:06.6]} 49. Kxc3 {[%clk 0:01:53.4]}
49... Kf6 {[%clk 0:00:07.3]} 50. Kd4 {[%clk 0:01:54.1]} 50... e5+ {[%clk
0:00:07]} 51. Kd5 {[%clk 0:01:54.3]} 51... e4 {[%clk 0:00:06.1]} 52. Kxe4 {[%clk
0:01:54.9]} 52... Ke6 {[%clk 0:00:07]} 53. b4 {[%clk 0:01:55.6]} 53... Kd6
{[%clk 0:00:07.9]} 54. Kf5 {[%clk 0:01:56.5]} 54... Kc6 {[%clk 0:00:08.8]} 55.
Kxg5 {[%clk 0:01:57.4]} 55... Kb5 {[%clk 0:00:09.7]} 56. Kf6 {[%clk 0:01:58.3]}
56... Kxb4 {[%clk 0:00:10.6]} 57. g5 {[%clk 0:01:59.2]} 57... Kc4 {[%clk
0:00:11.5]} 58. g6 {[%clk 0:02:00.1]} 1-0

[Event "Late-Titled-Tuesday-Blitz-January-30-2024"]
[Site "Chess.com"]
[Date "2024.01.30"]
[Round "3"]
[White "KamlaPasand"]
[Black "GP9isback23"]
[Result "0-1"]
[WhiteElo "2481"]
[BlackElo "2643"]
[TimeControl "180+1"]
[EndTime "14:27:41 PST"]
[Termination "GP9isback23 won by resignation"]

1. e4 {[%clk 0:03:00.9]} 1... c6 {[%clk 0:02:59]} 2. d4 {[%clk 0:02:59.8]} 2...
d5 {[%clk 0:02:59.5]} 3. Nc3 {[%clk 0:02:59.1]} 3... e6 {[%clk 0:02:58.4]} 4.
Nf3 {[%clk 0:02:50.6]} 4... Nf6 {[%clk 0:02:55.4]} 5. exd5 {[%clk 0:02:49.6]}
5... cxd5 {[%clk 0:02:53.2]} 6. Bb5+ {[%clk 0:02:49.4]} 6... Bd7 {[%clk
0:02:52.6]} 7. O-O {[%clk 0:02:50.3]} 7... Be7 {[%clk 0:02:52.6]} 8. Bf4 {[%clk
0:02:49.6]} 8... O-O {[%clk 0:02:52.8]} 9. Bd3 {[%clk 0:02:42.7]} 9... Nc6
{[%clk 0:02:51.3]} 10. Ne2 {[%clk 0:02:41.9]} 10... Nb4 {[%clk 0:02:48.7]} 11.
c3 {[%clk 0:02:41.3]} 11... Nxd3 {[%clk 0:02:48.7]} 12. Qxd3 {[%clk 0:02:42.2]}
12... a6 {[%clk 0:02:47]} 13. Ne5 {[%clk 0:02:42]} 13... Bb5 {[%clk 0:02:46.2]}
14. Qc2 {[%clk 0:02:40.6]} 14... Rc8 {[%clk 0:02:43]} 15. Ng3 {[%clk 0:02:35.8]}
15... Bxf1 {[%clk 0:02:42]} 16. Rxf1 {[%clk 0:02:34.5]} 16... Nd7 {[%clk
0:02:35]} 17. Nxd7 {[%clk 0:02:33.1]} 17... Qxd7 {[%clk 0:02:35.9]} 18. Be3
{[%clk 0:02:30.4]} 18... g6 {[%clk 0:02:29.8]} 19. f4 {[%clk 0:02:30.1]} 19...
b5 {[%clk 0:02:26.2]} 20. Qd3 {[%clk 0:02:20.8]} 20... a5 {[%clk 0:02:26]} 21.
Ne2 {[%clk 0:02:18.9]} 21... b4 {[%clk 0:02:24.6]} 22. g4 {[%clk 0:02:18.8]}
22... Kh8 {[%clk 0:02:23.8]} 23. f5 {[%clk 0:02:17.4]} 23... gxf5 {[%clk
0:02:18]} 24. gxf5 {[%clk 0:02:18.3]} 24... Rg8+ {[%clk 0:02:18.5]} 25. Kh1
{[%clk 0:02:16.3]} 25... exf5 {[%clk 0:02:16.5]} 26. Ng3 {[%clk 0:02:15.1]}
26... Bg5 {[%clk 0:01:53.2]} 27. Nxf5 {[%clk 0:02:03.5]} 27... Rce8 {[%clk
0:01:42.8]} 28. Bf2 {[%clk 0:02:01.7]} 28... Qe6 {[%clk 0:01:38.2]} 29. Re1
{[%clk 0:01:54.8]} 29... Qg6 {[%clk 0:01:14]} 30. Rg1 {[%clk 0:01:51.9]} 30...
Re4 {[%clk 0:01:10.5]} 31. Ng3 {[%clk 0:01:30.2]} 31... Rf4 {[%clk 0:00:56.9]}
32. Qe2 {[%clk 0:01:27.8]} 32... Qe6 {[%clk 0:00:39.4]} 33. Be3 {[%clk
0:01:21.5]} 33... Re4 {[%clk 0:00:23.9]} 34. Nxe4 {[%clk 0:01:10.9]} 34... Qxe4+
{[%clk 0:00:23.3]} 35. Qg2 {[%clk 0:01:11.8]} 35... Qxg2+ {[%clk 0:00:20.1]} 36.
Rxg2 {[%clk 0:01:10.9]} 36... Bxe3 {[%clk 0:00:20.8]} 37. Rxg8+ {[%clk
0:01:11.1]} 37... Kxg8 {[%clk 0:00:20.6]} 38. Kg2 {[%clk 0:01:09.8]} 38... bxc3
{[%clk 0:00:19.9]} 39. bxc3 {[%clk 0:01:09.8]} 39... Bd2 {[%clk 0:00:20.6]} 0-1

[Event "Late-Titled-Tuesday-Blitz-January-30-2024"]
[Site "Chess.com"]
[Date "2024.01.30"]
[Round "3"]
[White "bocah_sakit"]
[Black "vladoboch"]
[Result "1-0"]
[WhiteElo "2629"]
[BlackElo "2470"]
[TimeControl "180+1"]
[EndTime "14:27:42 PST"]
[Termination "bocah_sakit won on time"]

1. e4 {[%clk 0:03:00.9]} 1... c5 {[%clk 0:02:58.7]} 2. Nf3 {[%clk 0:02:57.4]}
2... Nc6 {[%clk 0:02:59.3]} 3. Bb5 {[%clk 0:02:56.9]} 3... e6 {[%clk 0:02:59.6]}
4. O-O {[%clk 0:02:56.5]} 4... Nge7 {[%clk 0:02:58.2]} 5. Re1 {[%clk 0:02:56.9]}
5... a6 {[%clk 0:02:57.8]} 6. Bxc6 {[%clk 0:02:57.1]} 6... Nxc6 {[%clk
0:02:58.7]} 7. d4 {[%clk 0:02:57.8]} 7... cxd4 {[%clk 0:02:58.9]} 8. Nxd4 {[%clk
0:02:58.7]} 8... Bc5 {[%clk 0:02:55.5]} 9. Nxc6 {[%clk 0:02:54.6]} 9... bxc6
{[%clk 0:02:54.8]} 10. Qg4 {[%clk 0:02:54.4]} 10... Qf6 {[%clk 0:02:50.8]} 11.
Qg3 {[%clk 0:02:44.7]} 11... O-O {[%clk 0:02:44.3]} 12. e5 {[%clk 0:02:42.3]}
12... Qf5 {[%clk 0:02:35]} 13. Nc3 {[%clk 0:02:38.4]} 13... Bb4 {[%clk
0:02:15.9]} 14. Bh6 {[%clk 0:02:24.8]} 14... Qg6 {[%clk 0:02:12.1]} 15. Qxg6
{[%clk 0:02:23]} 15... hxg6 {[%clk 0:01:55.4]} 16. Bd2 {[%clk 0:02:21.7]} 16...
f6 {[%clk 0:01:48.5]} 17. a3 {[%clk 0:02:05.3]} 17... Be7 {[%clk 0:01:44.5]} 18.
f4 {[%clk 0:01:52.1]} 18... Rb8 {[%clk 0:01:34.7]} 19. b3 {[%clk 0:01:46]} 19...
d6 {[%clk 0:01:22]} 20. exd6 {[%clk 0:01:43.5]} 20... Bxd6 {[%clk 0:01:22.9]}
21. Ne4 {[%clk 0:01:43.5]} 21... Bc7 {[%clk 0:01:16]} 22. Bb4 {[%clk 0:01:29.5]}
22... Rd8 {[%clk 0:01:06.9]} 23. Rad1 {[%clk 0:01:29.5]} 23... Rxd1 {[%clk
0:01:03.2]} 24. Rxd1 {[%clk 0:01:30.4]} 24... Kh7 {[%clk 0:00:22.5]} 25. Bd6
{[%clk 0:01:20.3]} 25... Bxd6 {[%clk 0:00:18.2]} 26. Rxd6 {[%clk 0:01:19]} 26...
Rb5 {[%clk 0:00:07.9]} 27. Rd8 {[%clk 0:01:12.6]} 27... Bb7 {[%clk 0:00:01.7]}
28. Nd6 {[%clk 0:01:13.3]} 28... Rb6 {[%clk 0:00:02.1]} 29. Nf7 {[%clk
0:01:12.2]} 29... g5 {[%clk 0:00:01.3]} 30. fxg5 {[%clk 0:01:13.1]} 30... fxg5
{[%clk 0:00:01.6]} 31. Nxg5+ {[%clk 0:01:12.6]} 31... Kg6 {[%clk 0:00:02.3]} 32.
Nxe6 {[%clk 0:01:13.5]} 32... c5 {[%clk 0:00:02.7]} 33. Nxc5 {[%clk 0:01:13]}
33... Bc6 {[%clk 0:00:01.5]} 34. Rd6+ {[%clk 0:01:12.1]} 34... Kh7 {[%clk
0:00:02.1]} 35. Na4 {[%clk 0:01:11.1]} 1-0

[Event "Late-Titled-Tuesday-Blitz-January-30-2024"]
[Site "Chess.com"]
[Date "2024.01.30"]
[Round "3"]
[White "iamanoush"]
[Black "ElephantChessGenius"]
[Result "1-0"]
[WhiteElo "2479"]
[BlackElo "2251"]
[TimeControl "180+1"]
[EndTime "14:27:44 PST"]
[Termination "iamanoush won on time"]

1. d4 {[%clk 0:03:00.9]} 1... d5 {[%clk 0:02:55.5]} 2. c4 {[%clk 0:03:00]} 2...
e6 {[%clk 0:02:43.9]} 3. Nc3 {[%clk 0:02:58.4]} 3... c6 {[%clk 0:02:43]} 4. e4
{[%clk 0:02:57.2]} 4... dxe4 {[%clk 0:02:42.5]} 5. Nxe4 {[%clk 0:02:58.1]} 5...
Bb4+ {[%clk 0:02:42.8]} 6. Bd2 {[%clk 0:02:58.7]} 6... Qxd4 {[%clk 0:02:42.2]}
7. Bxb4 {[%clk 0:02:59.2]} 7... Qxe4+ {[%clk 0:02:41.9]} 8. Be2 {[%clk
0:02:59.8]} 8... Na6 {[%clk 0:02:38.9]} 9. Bf8 {[%clk 0:02:48.2]} 9... Bd7
{[%clk 0:02:18.2]} 10. Kf1 {[%clk 0:02:08.4]} 10... Kxf8 {[%clk 0:01:34]} 11.
Qxd7 {[%clk 0:02:06.2]} 11... c5 {[%clk 0:01:18.9]} 12. Bf3 {[%clk 0:01:37.1]}
12... Qxc4+ {[%clk 0:01:17.9]} 13. Ne2 {[%clk 0:01:37.6]} 13... Nf6 {[%clk
0:01:00.3]} 14. Qd6+ {[%clk 0:01:09]} 14... Kg8 {[%clk 0:00:57]} 15. Bxb7 {[%clk
0:01:08.6]} 15... Rb8 {[%clk 0:00:51.3]} 16. Bxa6 {[%clk 0:00:59.5]} 16... Qb4
{[%clk 0:00:50.1]} 17. b3 {[%clk 0:00:48.9]} 17... Ne4 {[%clk 0:00:46.5]} 18.
Qd3 {[%clk 0:00:44.6]} 18... Nd2+ {[%clk 0:00:37.1]} 19. Kg1 {[%clk 0:00:43.5]}
19... c4 {[%clk 0:00:19.7]} 20. Bxc4 {[%clk 0:00:39.3]} 20... Rc8 {[%clk
0:00:13.2]} 21. Rd1 {[%clk 0:00:32.7]} 1-0

[Event "Late-Titled-Tuesday-Blitz-January-30-2024"]
[Site "Chess.com"]
[Date "2024.01.30"]
[Round "3"]
[White "C_K_G"]
[Black "Rafael_Ventura"]
[Result "0-1"]
[WhiteElo "2148"]
[BlackElo "2382"]
[TimeControl "180+1"]
[EndTime "14:27:44 PST"]
[Termination "Rafael_Ventura won on time"]

1. e4 {[%clk 0:03:00.9]} 1... c5 {[%clk 0:02:59.6]} 2. Nf3 {[%clk 0:03:00.7]}
2... d6 {[%clk 0:02:59.9]} 3. d4 {[%clk 0:03:01.3]} 3... cxd4 {[%clk 0:03:00.8]}
4. Nxd4 {[%clk 0:03:01.7]} 4... Nf6 {[%clk 0:03:01.1]} 5. Nc3 {[%clk 0:03:02.2]}
5... a6 {[%clk 0:03:01.7]} 6. Be2 {[%clk 0:03:02.5]} 6... e5 {[%clk 0:03:00.6]}
7. Nb3 {[%clk 0:03:02.3]} 7... Be7 {[%clk 0:03:01]} 8. Be3 {[%clk 0:03:02.4]}
8... O-O {[%clk 0:03:01.1]} 9. O-O {[%clk 0:03:03]} 9... Be6 {[%clk 0:02:59.8]}
10. f4 {[%clk 0:03:03.5]} 10... b5 {[%clk 0:02:57.8]} 11. f5 {[%clk 0:03:00.4]}
11... Bc8 {[%clk 0:02:57.7]} 12. g4 {[%clk 0:03:00.2]} 12... Bb7 {[%clk
0:02:57.7]} 13. Bf3 {[%clk 0:03:00.1]} 13... h6 {[%clk 0:02:57.5]} 14. h4 {[%clk
0:02:56.6]} 14... b4 {[%clk 0:02:57.5]} 15. Na4 {[%clk 0:02:22.2]} 15... Nbd7
{[%clk 0:02:48.1]} 16. g5 {[%clk 0:01:50.1]} 16... hxg5 {[%clk 0:02:47.5]} 17.
hxg5 {[%clk 0:01:48.9]} 17... Nxe4 {[%clk 0:02:46.9]} 18. g6 {[%clk 0:01:38.3]}
18... fxg6 {[%clk 0:02:45.6]} 19. fxg6 {[%clk 0:01:36]} 19... Bg5 {[%clk
0:02:44.9]} 20. Qd3 {[%clk 0:01:22.6]} 20... Bxe3+ {[%clk 0:02:28]} 21. Qxe3
{[%clk 0:01:21.7]} 21... Qh4 {[%clk 0:02:26.5]} 22. Bg2 {[%clk 0:01:03.9]} 22...
Qg4 {[%clk 0:02:09.1]} 23. Qh3 {[%clk 0:00:49.1]} 23... Qxh3 {[%clk 0:02:08.9]}
24. Bxh3 {[%clk 0:00:48.7]} 24... Ndf6 {[%clk 0:01:50.4]} 25. Be6+ {[%clk
0:00:47.9]} 25... Kh8 {[%clk 0:01:50.9]} 26. Rae1 {[%clk 0:00:19.6]} 26... Ng5
{[%clk 0:01:43.7]} 27. Bf5 {[%clk 0:00:18.7]} 27... Bc8 {[%clk 0:01:41.4]} 28.
Bxc8 {[%clk 0:00:15.8]} 28... Raxc8 {[%clk 0:01:41.7]} 29. Kg2 {[%clk 0:00:15]}
29... Rxc2+ {[%clk 0:01:41.2]} 30. Rf2 {[%clk 0:00:13.5]} 30... Rfc8 {[%clk
0:01:39.2]} 31. Rh1+ {[%clk 0:00:12.8]} 31... Kg8 {[%clk 0:01:39.4]} 32. Nb6
{[%clk 0:00:12.6]} 32... Rxf2+ {[%clk 0:01:38.3]} 33. Kxf2 {[%clk 0:00:12.9]}
33... Rc2+ {[%clk 0:01:38.6]} 34. Ke3 {[%clk 0:00:13.4]} 34... Rxb2 {[%clk
0:01:37.4]} 35. Na5 {[%clk 0:00:10.6]} 35... d5 {[%clk 0:01:35.1]} 36. Nc6
{[%clk 0:00:07.5]} 36... d4+ {[%clk 0:01:35]} 37. Kd3 {[%clk 0:00:07.9]} 37...
Rxa2 {[%clk 0:01:23.7]} 38. Nc8 {[%clk 0:00:07.9]} 38... Ra3+ {[%clk 0:01:23.5]}
39. Kd2 {[%clk 0:00:06.1]} 39... Nfe4+ {[%clk 0:01:23.2]} 40. Ke2 {[%clk
0:00:05.8]} 40... Ng3+ {[%clk 0:01:23.2]} 0-1